Cogmind - Beta 16.1 @@@ ROGUE MODE // 2026.04.21 @ 11:47:52 Player: SunShine214 Result: Destroyed by 51-XUV(R) with Subdweller Beam Cannon Performance ------------- Evolutions (0) 0 Regions Visited (2) 400 Robots Destroyed (21) 105 Value Destroyed (578) 578 Prototype IDs (0) 0 Alien Tech Used (0) 0 Bonus (0) 0 TOTAL SCORE: 1083 Bonus ------- None Cogmind --------- Core Integrity 0/250 Matter 210/300 Energy 100/100 System Corruption 0% Temperature Cool (9) Movement Treading (260) Ox1 Location -10/Subcaves Parts ------- > --- POWER (1) -------- (None) > --- PROPULSION (2) --- Spiked Treads > --- UTILITY (2) ------ Large Storage Unit > --- WEAPON (2) ------- Mini Grenade Launcher Makeshift Hammer > --- INVENTORY (15) --- Light Ion Engine Flight Unit Flight Unit Large Storage Unit Signal Interpreter Seismic Detector Hardened Light Armor Plating Hardened Light Armor Plating Medium Laser Small Laser Mini Grenade Launcher Mini Grenade Launcher Mini Grenade Launcher Mini Grenade Launcher Mini Grenade Launcher Peak State ------------ > --- POWER ------------ Ion Engine > --- PROPULSION ------- Spiked Treads Makeshift Leg > --- UTILITY ---------- Large Storage Unit Sensor Array > --- WEAPON ----------- Mini Grenade Launcher Makeshift Hammer > --- INVENTORY -------- Light Ion Engine Flight Unit Flight Unit Large Storage Unit Signal Interpreter Seismic Detector Hardened Light Armor Plating Hardened Light Armor Plating Medium Laser Small Laser Mini Grenade Launcher Mini Grenade Launcher Mini Grenade Launcher Mini Grenade Launcher Mini Grenade Launcher [Rating: 17] Favorites ----------- Power Ion Engine Engine Ion Engine Propulsion Light Treads Treads Light Treads Leg Makeshift Leg Wheel Subdweller Monowheel Utility Large Storage Unit Device Sensor Array Storage Large Storage Unit Weapon Mini Grenade Launcher Energy Gun Medium Laser Launcher Mini Grenade Launcher Special Weapon Mining Laser Impact Weapon Makeshift Hammer Build | -11 -10 -10 ------- Run | Yrd Mat Sub Slots Evolved . | . . . Power . | . . . Propulsion . | . . . Utility . | . . . Weapon . | . . . Parts Attached 18 | 8 3 7 Power 2 | 1 . 1 Engine 2 | 1 . 1 Core . | . . . Reactor . | . . . Propulsion 5 | 2 . 3 Treads 3 | 2 . 1 Leg 1 | . . 1 Wheel 1 | . . 1 Hover . | . . . Flight . | . . . Utility 6 | 3 2 1 Device 4 | 2 1 1 Storage 2 | 1 1 . Processor . | . . . Hackware . | . . . Protection . | . . . Artifact . | . . . Weapon 5 | 2 1 2 Energy Gun 2 | 2 . . Energy Cannon . | . . . Ballistic Gun . | . . . Ballistic Cannon . | . . . Launcher 1 | . . 1 Special Weapon 1 | . 1 . Impact Weapon 1 | . . 1 Slashing Weapon . | . . . Piercing Weapon . | . . . Special Melee Weapon . | . . . Unidentified Prototypes . | . . . Parts Lost 5 | . . 5 Power 2 | . . 2 Propulsion 2 | . . 2 Utility 1 | . . 1 Weapon . | . . . Highest Loss Streak 3 | . . 3 To Critical Strikes . | . . . Average Backups 12 | . 7 14 Power . | . . . Propulsion 1 | . 1 2 Utility 4 | . 2 5 Weapon 5 | . 2 7 Tool/Special . | . . . Unused Backups 13 | . 1 12 Power 1 | . . 1 Propulsion 2 | . . 2 Utility 4 | . . 4 Weapon 6 | . 1 5 Tool/Special . | . . . Average Slot Usage (%) 99 | . 100 99 Engine 13 | . 14 13 Treads 18 | . 28 15 Leg 8 | . . 11 Device 14 | . 14 14 Storage 14 | . 14 14 Energy Gun 7 | . 26 1 Launcher 10 | . . 14 Impact Weapon 9 | . . 12 Peak Build Rating 17 | 9 9 17 Average Rating 13 | 7 7 15 On Entrance 5 | . 7 9 Avg Prop Armor Cover (%) 14 | . . 14 Naked Turns . | . . . Heaviest Build 30 | 12 27 30 Greatest Support 40 | 40 40 40 Greatest Overweight (x) 1 | . . 1 Average Overweight (x) . | . . . Largest Inventory Capacity 15 | 8 15 15 Average Capacity 14 | 7 14 15 Most Carried 15 | 1 15 15 Average Carried 12 | . 7 14 Final Capacity 15 | 8 15 15 Final Carried 15 | 1 15 15 Class Distribution -------------------- 100% | Mutant Dominant Class ---------------- Mutant | -10/Materials Mutant | -10/Subcaves Resources | -11 -10 -10 ----------- Run | Yrd Mat Sub Matter Collected 510 | 280 30 200 Remotely . | . . . Salvage Created 521 | 126 139 256 Parts 37 | 6 10 21 Haulers Intercepted 1 | . 1 . Recyclers Shooed 2 | 2 . . Parts Field Recycled . | . . . Retrieved Matter . | . . . Parts Self-Destructed 3 | . . 3 Prevented . | . . . Parts Restored . | . . . Kills | -11 -10 -10 ------- Run | Yrd Mat Sub Combat Hostiles Destroyed 16 | . 4 12 Guns 4 | . 4 . AOE 12 | . . 12 Classes Destroyed 7 | 2 4 1 Worker 1 | . 1 . Tunneler 2 | 2 . . Hauler 1 | . 1 . Recycler 1 | 1 . . Swarmer 3 | . 3 . Grunt 3 | . 1 2 Subdweller 10 | . . 10 Best Kill Streak 4 | 1 3 4 Combat Bots Only 4 | . 3 4 Max Kills in Single Turn 2 | 1 2 2 Gunslinging . | . . . Exploded 2 | . . 2 Melee . | . . . Uniques/NPCs Destroyed . | . . . Combat | -11 -10 -10 -------- Run | Yrd Mat Sub Hostile Shots Fired 64 | . 16 48 Missed 21 | . 3 18 Hits 43 | . 13 30 Projectile 43 | . 13 30 Critical Strikes 1 | . . 1 Damage Taken 1019 | . 118 901 Core 256 | . 20 236 Absorbed by Shields . | . . . Core Remaining (%) 100 | 100 . . Volleys Fired 57 | 12 22 23 Largest 2 | 2 2 2 Hottest 150 | 90 150 80 Shots Fired 99 | 24 44 31 Gun 73 | 24 41 8 Cannon . | . . . Launcher 23 | . . 23 Special 3 | . 3 . Kinetic . | . . . Thermal 76 | 24 44 8 Explosive 23 | . . 23 Electromagnetic . | . . . Robot Hit Streak 6 | 6 5 4 Robot Miss Streak 3 | 2 3 2 Penetration Max . | . . . Secondary Targets . | . . . Shots Hit Robots 52 | 13 21 18 Core Hits 35 | 4 9 22 Critical Kills . | . . . Critical Parts Destroyed . | . . . Critical Strikes 2 | . 2 . Burn 2 | . 2 . Melee Attacks 17 | . . 17 Impact 17 | . . 17 Slashing . | . . . Piercing . | . . . Sneak Attacks . | . . . Combat Hostiles . | . . . Follow-up Attacks . | . . . Damage Inflicted 1907 | 149 255 1503 Guns 442 | 149 255 38 Cannons . | . . . Explosions 1465 | . . 1465 Melee . | . . . Ramming . | . . . Kinetic . | . . . Thermal 442 | 149 255 38 Explosive 1465 | . . 1465 Electromagnetic . | . . . Impact . | . . . Slashing . | . . . Piercing . | . . . Highest Corruption . | . . . Average Corruption . | . . . Corruption Purged . | . . . Corruption Blocked . | . . . Overload Shots . | . . . Overflow Damage 4 | . . 4 Projectiles . | . . . Explosions 4 | . . 4 Melee . | . . . Knockbacks . | . . . Impact . | . . . Kinetic . | . . . Secondary . | . . . Self-Inflicted Damage 208 | . . 208 Shots 7 | . . 7 Rammed . | . . . Targets Rammed . | . . . Kicked . | . . . Crushed . | . . . Highest Temperature 240 | 120 240 . Average Temperature 69 | 42 82 . Received Heat Transfer 111 | . 30 81 Siege Activations . | . . . Martial Activations . | . . . Shielding Activations . | . . . Robots Disrupted . | . . . Combat Hostiles . | . . . Robots Corrupted . | . . . Combat Hostiles . | . . . Parts Fried . | . . . Impact Corruptions . | . . . Robots Melted . | . . . Combat Hostiles . | . . . Parts Melted 2 | . 2 . Heat Transferred 1326 | 409 806 111 Parts Sabotaged . | . . . Parts Stolen . | . . . Parts Stripped . | . . . Power Chain Reactions . | . . . Alert | -11 -10 -10 ------- Run | Yrd Mat Sub Maximum Alert Level . | . . . Low Security (%) 100 | 100 100 . Level 1 . | . . . Level 2 . | . . . Level 3 . | . . . Level 4 . | . . . Level 5 . | . . . High Security . | . . . Max Security . | . . . Peak Influence 70 | 5 70 . Initial . | . . . Average 7 | . 10 . Influence Increases 238 | 15 128 95 Destroy 0b10 Robot/C 120 | . 80 40 Destroy 0b10 Robot/NC 25 | 15 10 . Destroy Leader 32 | . 22 10 Disable Machine 15 | . 15 . Destroy Structure 1 | . 1 . Lose Combat Pursuer 45 | . . 45 Influence Decreases 238 | 15 128 95 Time Decay 228 | 15 128 85 Lost Part 10 | . . 10 Squads Dispatched 1 | . 1 . Investigation . | . . . Extermination . | . . . Reinforcement 1 | . 1 . Assault . | . . . Garrison . | . . . Intercept . | . . . Searches Triggered . | . . . Construction Impeded . | . . . Haulers Reinforced . | . . . Active Scanning Responses . | . . . Cargo Convoy Interrupts . | . . . Stealth | -11 -10 -10 --------- Run | Yrd Mat Sub Distress Signals 1 | . 1 . Communications Jammed . | . . . Distress Signals . | . . . Times Spotted 24 | . 9 15 Peak Tracking Total 4 | . 3 4 Tactical Retreats 1 | . . 1 Traps | -11 -10 -10 ------- Run | Yrd Mat Sub Traps Triggered 2 | . . 2 Indirectly . | . . . Trap Hack Attempts . | . . . Triggered . | . . . Disarmed . | . . . Reprogrammed . | . . . Reused . | . . . Traps Extracted . | . . . Installed . | . . . Triggered . | . . . Machines | -11 -10 -10 ---------- Run | Yrd Mat Sub Machines Disabled 1 | . 1 . Max in Single Turn 1 | . 1 . Machines Repaired . | . . . Machines Dismantled . | . . . Machines Sabotaged . | . . . Overloaded Fab Kills . | . . . Hacking | -11 -10 -10 --------- Run | Yrd Mat Sub Machines Accessed 4 | . 3 1 Terminals 3 | . 3 . Fabricators . | . . . Repair Stations . | . . . Recycling Units . | . . . Scanalyzers . | . . . Garrison Access . | . . . Total Hacks 10 | . 6 4 Successful 6 | . 2 4 Failed 4 | . 4 . Catastrophic . | . . . Database Lockouts . | . . . Manual . | . . . Terminals 6 | . 6 . Fabricators . | . . . Repair Stations . | . . . Recycling Units . | . . . Scanalyzers . | . . . Garrison Access . | . . . Terminal Hacks 6 | . 2 4 Record 4 | . . 4 Hauler Manifests 1 | . 1 . Zone Layout 1 | . 1 . Fabricator Hacks . | . . . Repair Station Hacks . | . . . Recycling Unit Hacks . | . . . Scanalyzer . | . . . Garrison Access Hacks . | . . . Unauthorized Hacks . | . . . Terminals . | . . . Fabricators . | . . . Repair Stations . | . . . Recycling Units . | . . . Scanalyzers . | . . . Garrison Access . | . . . Data Cores Recovered . | . . . Used . | . . . Hacking Detections 1 | . 1 . Full Trace Events 1 | . 1 . Feedback Events . | . . . Feedback Blocked . | . . . Robot Schematics Acquired . | . . . Robots Built . | . . . Authchips . | . . . Time . | . . . Total Robot Build Rating . | . . . Part Schematics Acquired . | . . . Parts Built . | . . . Authchips . | . . . Time . | . . . Total Part Build Rating . | . . . Part Studies Acquired . | . . . Parts Repaired . | . . . Time . | . . . Parts Recycled . | . . . Recycled Matter . | . . . Retrieved Matter . | . . . Retrieved Components . | . . . Parts Scanalyzed . | . . . Part Schematics Acquired . | . . . Parts Damaged . | . . . Bothacking | -11 -10 -10 ------------ Run | Yrd Mat Sub Used RIF Installer . | . . . Robots Hacked . | . . . Non-combat . | . . . Combat . | . . . Robot Hacks Applied . | . . . Relay Couplers Released . | . . . Fabnet Peak Effective % . | . . . Robots Rewired . | . . . Allies Hacked . | . . . Hacks Repelled . | . . . Allies | -11 -10 -10 -------- Run | Yrd Mat Sub Total Allies . | . . . Largest Group . | . . . Highest-Rated Group . | . . . Highest-Rated Ally . | . . . Total Orders . | . . . Ally Attacks . | . . . Total Damage . | . . . Kills . | . . . Allies Corrupted . | . . . Allies Melted . | . . . Intel | -11 -10 -10 ------- Run | Yrd Mat Sub Active Infowar (turns) 2752 | 147 624 1981 Sensors 1902 | . . 1902 Terrain 118 | 118 . . Seismic 732 | 29 624 79 Robot Analysis Total . | . . . Derelict Logs Recovered . | . . . Drone Launches . | . . . Drone Recoveries . | . . . Exploration | -11 -10 -10 ------------- Run | Yrd Mat Sub Turns Passed 2843 | 237 624 1982 Spaces Moved 1351 | 120 326 905 Core 3 | 3 . . Treads 621 | 117 326 178 Legs 727 | . . 727 Wheels . | . . . Hover . | . . . Flight . | . . . Fastest Speed 50 | 50 160 160 Average Speed 190 | 157 160 205 Slowest Speed 260 | 160 160 260 Overloaded Moves . | . . . Propulsion Burnouts . | . . . Robots Hopped . | . . . Potential Cave-ins . | . . . Cave-ins Triggered . | . . . Exploration Rate (%) 31 | 4 42 47 Regions Visited 2 Branch Regions 1 Pre-discovered Areas 2 | . . 2 Known Exits Taken . | . . . Unknown Exits Taken 2 | 1 1 . Scrap Searched 6 | . . 6 Spaces Dug . | . . . Terrain Destroyed 176 | . 1 175 Melee . | . . . Projectile 1 | . 1 . AOE 175 | . . 175 Terrain Rammed . | . . . Walls Destroyed . | . . . Machines Disabled . | . . . Actions | -11 -10 -10 --------- Run | Yrd Mat Sub Total 1496 | 140 378 978 Wait 31 | . 9 22 Move 1349 | 119 325 905 Hop . | . . . Pick Up 18 | 1 15 2 Fast Attach 8 | 7 . 1 Attach 1 | . . 1 Detach . | . . . Swap 10 | 1 4 5 Drop 5 | . 3 2 Fire 57 | 12 22 23 Melee 17 | . . 17 Ram . | . . . Kick . | . . . Crush . | . . . Escape Stasis . | . . . Rewire . | . . . Trap . | . . . Miscellaneous . | . . . Route ------- -11/Scrapyard -10/Materials (discovered 2 exits: [*Min] / *Sub) -10/Subcaves (discovered 1 exit: [*Mat]) History --------- Turn | Location | Event 15 | -11/Scrapyard | Discovered new exit (range 14) 238 | -11/Scrapyard | Entered Materials 315 | -10/Materials | Build established: Mutant 593 | -10/Materials | Discovered new exit (range 15) 661 | -10/Materials | Discovered new exit (range 14) 862 | -10/Materials | Entered Subcaves 933 | -10/Subcaves | Discovered new exit (range 5) 937 | -10/Subcaves | Learned location of Zion (-6) 937 | -10/Subcaves | Met a Zionite searching for "candidates" 986 | -10/Subcaves | Shifting Twisted Machinery released Sub. Power Source 1007 | -10/Subcaves | Shifting Twisted Machinery released Sub. Power Source 1238 | -10/Subcaves | Ambushed by angry Subdweller bent on revenge 1270 | -10/Subcaves | Core integrity fell below 50% 1272 | -10/Subcaves | A swath of the cavern ceiling suddenly collapsed 1547 | -10/Subcaves | Visited Clippyterm 1553 | -10/Subcaves | Learned location of Extension (-6) 1699 | -10/Subcaves | A swath of the cavern ceiling suddenly collapsed 2833 | -10/Subcaves | Core integrity fell below 20% 2844 | -10/Subcaves | Destroyed by 51-XUV(R) with Subdweller Beam Cannon Last Messages --------------- 02295_ Acquired 10 matter. 02309_ Subatomizers dissect the Sub. Power Source. 02710_ Subatomizers dissect the Wheel. 02786_ Triggered Piercing Trap. 02786_ Spikes shoot up from the floor. 02786_ Critical hit (Impale). 02798_ Triggered Shrapnel Trap. 02798_ An expanding cloud of shrapnel blasts out in all directions. 02814_ Mak. Leg destroyed. 02829_ The unstable cave ceiling collapses. 02832_ 41-RK2(R) destroyed. 02833_ 51-XUV(R): "HIDIE!" 02834_ 2L-D9P(R) destroyed. 02839_ 2W-ZG3(R): "ARGHSUB!" 02839_ The unstable cave ceiling collapses. 02843_ Sensor Array destroyed. 02843_ Ion Engine destroyed. 02844_ 2W-ZG3(R) destroyed. Map ----- +----------------------------------------------------+ | ############### #"##""#?????????????????????## | | #??????????????## #""# ##????????????????###### | | #???????????????????##"# ##???????????????# " # | | #????????????????????## #???????????????" & & | | #?????????????????????## #???????????????# | | ??????????????????????## ##???????????????# | | ??????????????????????# #???????????????#" "" | | ??????????????????????## ##???????????????### | | ???????????????????????# #????????????????# | | ???????????????????????# #????????????????# | | ??????????????????????## ##????????????????## | | ??????????????????????# #?????????????????# | | ??????????????????????# ##?????????????????# # | | ??????????????????????# #??????????????????# #? | | ??????????????????????# ##?????????????????###?? | | ??????????????????????## #?????????????????????? | | ???????????????????????# ##?????????????????????? | | ???????????????????????# ##???????????????###### | | ???????????????????????## #???????????????# ## | | ??????????????????##?#### ##??????????????# | | ?????????????????## ##;;; ;#?????????????## | | ?????????????????# ;#?????????????# ## | | ?????????????????# ^ ##?????????????# ## | | ?????????????????# #?????????????## ### | | ?????????????????## #;; ;#?????????????# #? | | ??????????????????##?# @ ##?????????????## ##? | | ????????????????????# #??????????????# #?? | | ????????????????? #??????????????## ###? | | ????????????????# & ##??????????????# # #? | | ?????????????? %[ #???????????????## #? | | ???????????? R ! "#??????????###### # #? | | ?????????? ^""#?????????# ## | | ??????????? # ""#????????## # | | ???????????# ## ^"#????????#"&!& ## | | ????????????? ??# # "#????????#%=%[& #? | | ???????????????? ##^ ""#????????#*"]&% ##? | | ??????????????? ###? "#?????????#%# #? | | ???????????????? ???? "##?????????###### ### | | ??????????????????????? "#???????????????### | | ??????????????????????? "??????????????????## # | | ??????????????????????"""???????????????????## # | | ??????????????????????""?????????????????????## | | ??????????????????????????????????????????????## | | ???????????????????????????????????????????????### | | ?????????????????????????????????????????????????# | | ?????????????????????????????????????????????????? | | ?????????????????????????????????????????????????? | | ?????????????????????????????????????????????????? | | ?????????????????????????????????????????????????? | | ?????????????????????????????????????????????????? | +----------------------------------------------------+ Best States ------------- Heat Dissipation 25 Energy Generation 10 Energy Capacity 250 Matter Stores 300 Matter Capacity 300 Sight Range 16 Robot Scan Range 14 Terrain Scan Range 16 Terrain Scan Density 10 Evasion (%) 40 Recoil Reduction 2 Item Schematics ----------------- None Robot Schematics ------------------ None Fabricated ------------ Nothing Repaired ---------- Nothing Studied --------- None Alien Tech Used ----------------- None Achievements -------------- None Challenges ------------ None Game ------ Seed ActiveRiotGriptreads Manual? 0 Play Time 00:16:25 Cumulative 147.5 hours Start 2026.04.21 @ 11:37:45 End 2026.04.21 @ 11:47:52 Sessions 1 Manual Loads 0 Difficulty Rogue Special Mode None Game No. 228 Rogue 228 Adventurer 0 Explorer 0 Win Type - Total 1 Types 1/0/0/0/0/0/0/0/0/0 Lore% 52 Gallery% 55 Achievement% 42 Wizard Run 0 Options --------- Layout 1 ASCII 0 Keyboard 1 Movement Arrows Keybinds 0 Fullscreen 1 Font 24/Smallcaps Map View 50x35 Zoom Use 0% Tactical HUD 1 Map Filters NONE Filters NONE Steam 1 RUN: c6ec8105-50ad-4ad5-9d1e-8bf1b1f30bd8